fUSD/lending_fUSD_20250227
["ID","MTS","AMOUNT","RATE_DAILY","PERIOD"]
[354719188,1740643836922,-3000.0,0.000466,2]
[354719190,1740643836931,-151.0,0.000466,14]
[354719192,1740643836940,-151.0,0.000466,14]
[354719194,1740643836950,-151.0,0.000466,14]
[354719197,1740643836963,-151.0,0.00046685,120]
[354719198,1740643836972,-157.581798,0.00046691,4]
[354719200,1740643836981,-309.94419127,0.00046693,10]
[354719202,1740643836990,-1460.107,0.00046977,78]
[354719204,1740643836999,-210.7944209,0.00047438,25]
[354719206,1740643837010,-8024.305894,0.000475,2]
[354719208,1740643837019,-1276.0,0.00047538,2]
[354719210,1740643837028,-2029.0,0.00047538,2]
[354719212,1740643837037,-568.0,0.00047538,2]
[354719214,1740643837047,-150.0,0.00047538,2]
[354719216,1740643837056,-376.097,0.00047538,2]
[354719218,1740643837065,-638.0,0.00047538,2]
[354719220,1740643837074,-244.469,0.00047538,2]
[354719222,1740643837083,-1263.001,0.00047538,2]
[354719224,1740643837092,-1867.034,0.00047538,2]
[354719226,1740643837101,-897.533,0.00047538,2]
[354719228,1740643837111,-3923.0,0.00047538,2]
[354719230,1740643837120,-150.0,0.00047538,2]
[354719232,1740643837128,-368.116,0.00047538,2]
[354719233,1740643837138,-210.79442088,0.00047669,25]
[354719234,1740643837147,-2306.19469957,0.00047671,14]
[354719235,1740643837156,-11729.12241174,0.00047678,15]
[354719236,1740643837165,-433.51329318,0.00047708,15]
[354719237,1740643837175,-5800.0,0.00047744,14]
[354719238,1740643837184,-5800.0,0.00047752,14]
[354719239,1740643837193,-5800.0,0.00047761,14]
[354719240,1740643837202,-5800.0,0.00047769,14]
[354719241,1740643837211,-151.0,0.00047769,14]
[354719242,1740643837221,-151.0,0.00047769,14]
[354719243,1740643837230,-151.0,0.00047769,14]
[354719244,1740643837240,-258.448214,0.00047769,14]
[354719245,1740643837249,-298.020615,0.00047769,10]
[354719246,1740643837260,-151.0,0.00047769,14]
[354719247,1740643837271,-151.0,0.00047769,14]
[354719248,1740643837281,-151.0,0.00047769,14]
[354719249,1740643837291,-151.0,0.00047769,14]
[354719250,1740643837301,-151.0,0.00047769,3]
[354719252,1740643837310,-274.9762,0.00047769,14]
[354719254,1740643837319,-274.9762,0.00047769,14]
[354719256,1740643837328,-151.0,0.00047769,14]
[354719258,1740643837338,-151.0,0.00047769,14]
[354719260,1740643837347,-151.828583,0.00047769,14]
[354719262,1740643837356,-451.913265,0.00047769,14]
[354719264,1740643837365,-451.913265,0.00047769,14]
[354719266,1740643837374,-151.0,0.00047769,14]
[354719268,1740643837384,-151.0,0.00047769,14]
[354719270,1740643837393,-151.0,0.00047769,14]
[354719272,1740643837402,-250.540108,0.00047769,14]
[354719274,1740643837412,-250.540108,0.00047769,14]
[354719276,1740643837420,-827.106712,0.00047769,14]
[354719278,1740643837430,-151.0,0.00047769,14]
[354719280,1740643837439,-151.0,0.00047769,14]
[354719282,1740643837448,-239.46013966,0.000479,30]
[354719284,1740643837457,-164.85897035,0.000479,23]
[354719286,1740643837467,-1168.2546,0.000479,120]
[354719288,1740643837476,-210.79442088,0.000479,25]
[354719290,1740643837485,-170.89734821,0.0004799,7]
[354719292,1740643837494,-6166.50031596,0.00048,52]
[354719294,1740643837504,-253707.23513863,0.00048,30]
[354719338,1740643837872,-150.0,0.00025987,7]
[354719340,1740643837881,-1335.48985419,0.00048,30]
[354719351,1740643837976,-1184.42146345,0.00048,30]
[354719893,1740643843081,-664.23875928,0.00048,7]
[354720014,1740643845952,-552.76124072,0.00048,7]
[354720015,1740643845966,-2996.68403364,0.00048,30]
[354720016,1740643845975,-1158.03169564,0.00048,30]
[354720017,1740643845986,-5361.6,0.00048,30]
[354720191,1740644730217,16891.60366352,0.00011,2]
[354720192,1740644838846,5127.38125458,0.0001305,2]
[354720193,1740644839377,249.47164694,0.000101,2]
[354720194,1740644853013,3500.0,0.00013,2]
[354720195,1740644871797,4246.33873223,0.00013,2]
[354720196,1740644889975,404.37525964,9.9e-05,2]
[354720199,1740644923767,198.80360409,0.00010136,2]
[354720206,1740645032054,-222.796,0.000149,2]
[354720208,1740645032066,-170.79286564,0.000149,2]
[354720210,1740645032076,-455.77521686,0.000149,2]
[354720211,1740645032215,-1115.16668314,0.000149,2]
[354720212,1740645032224,-313.71295702,0.000149,2]
[354720213,1740645032234,-150.0,0.00014949,2]
[354720214,1740645032243,-303.86865417,0.00014999,2]
[354720215,1740645032252,-274.31316432,0.00014999,2]
[354720216,1740645032261,-500.0,0.00014999,2]
[354720217,1740645032270,-300.0,0.00014999,2]
[354720218,1740645032279,-150.0,0.00014999,2]
[354720219,1740645032288,-12348.94842172,0.00015,2]
[354720220,1740645032300,-798.76112426,0.00015,2]
[354720221,1740645032321,-479.51103002,0.00015,2]
[354720786,1740645038045,-1809.39709341,0.00015,2]
[354720789,1740645038057,-648.615,0.00015,2]
[354720800,1740645038155,-8033.592,0.00015,2]
[354721022,1740645040318,-582.85075128,0.00015,2]
[354721426,1740645044393,-16008.81029913,0.00015,2]
[354721437,1740645044491,-991.24079436,0.00015,2]
[354721616,1740645046128,-607.64259762,0.00015,2]
[354723864,1740645148036,-222.796,0.000149,2]
[354723865,1740645148059,-2555.3642,0.000149,2]
[354723866,1740645148081,-4691.64896475,0.000149,2]
[354723867,1740645148104,-313.71295702,0.000149,2]
[354723868,1740645148127,-300.0,0.00014999,2]
[354723869,1740645148153,-19756.47787823,0.00015,2]
[354723870,1740645264456,863.26154713,0.00023,30]
[354723871,1740645563281,-11331.58507316,0.0003,60]
[354723872,1740645563305,-500.0,0.00031019,30]
[354723873,1740645563328,-500.0,0.00031019,30]
[354723874,1740645563351,-500.0,0.00031019,30]
[354723875,1740645563375,-500.0,0.00031019,30]
[354723876,1740645563398,-500.0,0.00031019,30]
[354723877,1740645563420,-500.0,0.00031019,30]
[354723878,1740645563442,-500.0,0.00031019,30]
[354723879,1740645563465,-500.0,0.00031019,30]
[354723880,1740645563489,-500.0,0.00031019,30]
[354723881,1740645563512,-500.0,0.00031019,30]
[354723882,1740645563538,-500.0,0.00031019,30]
[354723883,1740645563562,-500.0,0.00031019,30]
[354723884,1740645563585,-500.0,0.00031019,30]
[354723885,1740645563613,-1954.82000009,0.000399,30]
[354723886,1740645563637,-1333.91,0.00041096,120]
[354723887,1740645563661,-150.99,0.00042707,30]
[354723888,1740645563689,-876.064,0.00044779,71]
[354723889,1740645563714,-150.0,0.000452,80]
[354723890,1740645563738,-15000.0,0.000469,120]
[354723891,1740645563761,-1000.0,0.00047,120]
[354723892,1740645563784,-10000.0,0.00047,120]
[354723893,1740645563807,-12500.0,0.00047,120]
[354723894,1740645563833,-12500.0,0.00047112,120]
[354723895,1740645563856,-12500.0,0.00047225,120]
[354723896,1740645563879,-10000.0,0.000473,120]
[354723897,1740645563902,-12500.0,0.00047338,120]
[354723898,1740645563925,-12500.0,0.0004745,120]
[354723899,1740645563949,-12500.0,0.00047563,120]
[354723900,1740645563972,-10000.0,0.000476,120]
[354723901,1740645563997,-12500.0,0.00047675,120]
[354723902,1740645564021,-12500.0,0.00047788,120]
[354723903,1740645564045,-10000.0,0.000479,120]
[354723904,1740645564068,-12500.0,0.000479,120]
[354723905,1740645564092,-2431.0,0.00047973,120]
[354723906,1740645564115,-2612.0,0.00047973,120]
[354723907,1740645564139,-11480.36830436,0.00048,30]
[354723908,1740645564163,-621669.56023047,0.00048,30]
[354723909,1740645564198,-515.751643,0.00048,73]
[354723910,1740645564224,-450.02936322,0.00048,30]
[354723911,1740645564249,-968.64,0.00048,120]
[354723912,1740645564275,-358.054335,0.00048,103]
[354723913,1740645564301,-12500.0,0.00048013,120]
[354723914,1740645564326,-5781.91,0.00048125,120]
[354723915,1740645564351,-10000.0,0.000482,120]
[354723916,1740645564378,-151.0,0.00048356,120]
[354723917,1740645564402,-10000.0,0.000485,120]
[354723918,1740645564426,-10000.0,0.000488,120]
[354723919,1740645564450,-10000.0,0.000491,120]
[354723920,1740645564473,-10000.0,0.000494,120]
[354723921,1740645564498,-10000.0,0.000497,120]
[354723922,1740645564522,-151.0,0.00049996,30]
[354723923,1740645564549,-515.751643,0.0005,81]
[354723924,1740645564573,-2174.41,0.0005,120]
[354723925,1740645564597,-151.0,0.0005,120]
[354723926,1740645564622,-166.493681,0.0005,120]
[354723927,1740645564645,-246.62844,0.0005,120]
[354723928,1740645564668,-151.0,0.0005,120]
[354723929,1740645564692,-151.0,0.0005,120]
[354723930,1740645564716,-151.0,0.0005,120]
[354723931,1740645564743,-151.0,0.0005,120]
[354723932,1740645564766,-316.339286,0.0005,120]
[354723933,1740645564790,-316.339286,0.0005,120]
[354723934,1740645564814,-151.0,0.0005,120]
[354723935,1740645564838,-151.0,0.0005,120]
[354723936,1740645564862,-151.0,0.0005,120]
[354723937,1740645564886,-151.0,0.0005,120]
[354723938,1740645564909,-171.380184,0.0005,120]
[354723939,1740645564933,-171.380184,0.0005,120]
[354723940,1740645564957,-175.378075,0.0005,120]
[354723941,1740645564981,-175.378075,0.0005,120]
[354723942,1740645565006,-184.975,0.0005,120]
[354723943,1740645565030,-184.975,0.0005,120]
[354723944,1740645565054,-5000.0,0.0005,120]
[354723945,1740645565077,-150.0,0.0005,120]
[354723946,1740645565101,-151.0,0.00050027,120]
[354723947,1740645565125,-151.0,0.00050735,120]
[354723948,1740645565153,-399.79424,0.00050735,120]
[354723949,1740645565177,-151.0,0.00050735,120]
[354723950,1740645565202,-399.79424,0.00050735,120]
[354723951,1740645565386,-236.040332,0.00050735,120]
[354723952,1740645565411,-151.0,0.00050863,120]
[354723953,1740645565439,-151.0,0.00050863,120]
[354723954,1740645565463,-219.98096,0.00050863,120]
[354723955,1740645565489,-219.98096,0.00050863,120]
[354723956,1740645565515,-151.0,0.00050863,120]
[354723957,1740645565543,-221.510886,0.00050863,120]
[354723958,1740645565568,-221.510886,0.00050863,120]
[354723959,1740645565592,-151.0,0.00050863,120]
[354723960,1740645565617,-3343.33,0.00051334,120]
[354723961,1740645565641,-174.552719,0.00051334,120]
[354723962,1740645565666,-151.0,0.00051334,120]
[354723963,1740645565690,-703.040705,0.00051334,120]
[354723964,1740645565715,-703.040705,0.00051334,120]
[354723965,1740645565738,-218.333758,0.00051334,120]
[354723966,1740645565762,-218.333758,0.00051334,120]
[354723967,1740645565785,-270.784546,0.00051334,120]
[354723968,1740645565809,-151.0,0.00051334,120]
[354723969,1740645565834,-151.0,0.00051699,120]
[354723970,1740645565858,-600000.0,0.00053,120]
[354723971,1740645565881,-151.0,0.00053,120]
[354723972,1740645565906,-221.510886,0.00053,120]
[354723973,1740645565929,-221.510886,0.00053,120]
[354723974,1740645565952,-238.559576,0.00053,120]
[354723975,1740645565976,-3343.33,0.00053334,120]
[354723976,1740645566000,-151.0,0.0005337,120]
[354723977,1740645566024,-152.03,0.0005399,120]
[354723978,1740645566048,-152.03,0.0005399,120]
[354723979,1740645566071,-152.03,0.0005399,120]
[354723980,1740645566094,-152.03,0.0005399,120]
[354723981,1740645566120,-152.03,0.0005399,120]
[354723982,1740645566143,-152.03,0.0005399,120]
[354723983,1740645566168,-152.03,0.0005399,120]
[354723984,1740645566192,-152.03,0.0005399,120]
[354723985,1740645566216,-152.03,0.0005399,120]
[354723986,1740645566243,-152.03,0.0005399,120]
[354723987,1740645566267,-152.03,0.0005399,120]
[354723988,1740645566290,-152.03,0.0005399,120]
[354723989,1740645566314,-500.0,0.00053999,120]
[354723990,1740645566338,-2127.05057864,0.00054,120]
[354723991,1740645566361,-174.552719,0.00054,120]
[354723992,1740645566385,-151.0,0.00054,120]
[354723993,1740645566409,-151.0,0.00054,120]
[354723994,1740645566433,-151.0,0.00054,120]
[354723995,1740645566457,-151.0,0.00054,120]
[354723996,1740645566482,-316.339286,0.00054,120]
[354723997,1740645566508,-316.339286,0.00054,120]
[354723998,1740645566534,-151.0,0.00054,120]
[354723999,1740645566561,-151.0,0.00054,120]
[354724000,1740645566585,-219.024794,0.00054,120]
[354724001,1740645566611,-171.380184,0.00054,120]
[354724002,1740645566634,-171.380184,0.00054,120]
[354724003,1740645566658,-175.378075,0.00054,120]
[354724004,1740645566681,-175.378075,0.00054,120]
[354724005,1740645566706,-151.0,0.00054,30]
[354724006,1740645566730,-184.975,0.00054,120]
[354724007,1740645566754,-184.975,0.00054,120]
[354724008,1740645566778,-151.0,0.00054,120]
[354724009,1740645566802,-399.79424,0.00054,120]
[354724010,1740645566825,-151.0,0.00054,120]
[354724011,1740645566850,-399.79424,0.00054,120]
[354724012,1740645566874,-151.0,0.00054,120]
[354724013,1740645566897,-703.040705,0.00054,120]
[354724014,1740645566922,-703.040705,0.00054,120]
[354724015,1740645566945,-218.333758,0.00054,120]
[354724016,1740645566970,-218.333758,0.00054,120]
[354724017,1740645566993,-151.0,0.00054,120]
[354724018,1740645567017,-151.0,0.00054,120]
[354724019,1740645567043,-454442.47756606,0.00054,120]
[354724020,1740645573960,-1000.0,0.0004799,30]
[354724021,1740645573991,-545557.52243394,0.00054,120]
[354724022,1740645574018,-151.0,0.00054,120]
[354724023,1740645574043,-219.98096,0.00054,120]
[354724024,1740645574068,-219.98096,0.00054,120]
[354724025,1740645574092,-221.510886,0.00054,120]
[354724026,1740645574116,-221.510886,0.00054,120]
[354724027,1740645574141,-205.25154824,0.00054178,55]
[354724028,1740645574166,-153.67,0.00054384,120]
[354724029,1740645574308,-4000.0,0.00054795,30]
[354724030,1740645574360,150.0,0.000485,120]
[354724031,1740645574399,1000.0,0.0004798,30]
[354724032,1740645574865,1000.0,0.0004797,30]
[354724033,1740645648280,-151.0,0.00022711,7]
[354724034,1740645648312,-151.0,0.00022711,7]
[354724035,1740645648337,-151.0,0.00022711,7]
[354724036,1740645648363,-171.380184,0.00022711,7]
[354724037,1740645648388,-171.380184,0.00022711,7]
[354724038,1740645648414,-150.0,0.00024997,7]
[354724039,1740645648440,-311.73154336,0.00025969,10]
[354724040,1740645648467,-201.13836433,0.00028194,5]
[354724041,1740645648493,-796.0,0.00029403,5]
[354724042,1740645648519,-151.0,0.0003,7]
[354724043,1740645648545,-238.24925,0.0003,7]
[354724044,1740645648581,-151.0,0.0003,7]
[354724045,1740645648609,-399.79424,0.0003,7]
[354724046,1740645648635,-151.0,0.0003,7]
[354724047,1740645648662,-399.79424,0.0003,7]
[354724048,1740645648689,-151.0,0.0003,7]
[354724049,1740645648720,-151.0,0.0003,7]
[354724050,1740645648749,-151.0,0.0003,7]
[354724051,1740645648776,-151.0,0.0003,7]
[354724052,1740645648801,-218.333758,0.0003,7]
[354724053,1740645648828,-218.333758,0.0003,7]
[354724054,1740645648855,-201.13836433,0.00031018,5]
[354724055,1740645648882,-184.975,0.00031045,7]
[354724056,1740645648910,-184.975,0.00031045,7]
[354724057,1740645648934,-151.0,0.00031045,7]
[354724058,1740645648960,-151.0,0.000324,7]
[354724059,1740645648989,-151.0,0.000324,7]
[354724060,1740645649013,-151.0,0.000324,7]
[354724061,1740645649039,-151.0,0.000324,7]
[354724062,1740645649066,-171.380184,0.000324,7]
[354724063,1740645649092,-171.380184,0.000324,7]
[354724064,1740645649118,-175.378075,0.000324,7]
[354724065,1740645649143,-151.0,0.000324,7]
[354724066,1740645649170,-175.378075,0.000324,7]
[354724067,1740645649195,-151.0,0.000324,7]
[354724068,1740645649221,-151.0,0.00033122,7]
[354724069,1740645649247,-151.0,0.00033122,7]
[354724070,1740645649273,-151.0,0.00033122,7]
[354724071,1740645649302,-151.0,0.00033122,7]
[354724072,1740645649329,-151.0,0.00033122,7]
[354724073,1740645649355,-152.47319,0.00033122,7]
[354724074,1740645649380,-151.0,0.00033122,7]
[354724075,1740645649404,-219.98096,0.00033122,7]
[354724076,1740645649428,-219.98096,0.00033122,7]
[354724077,1740645649452,-151.0,0.00033122,7]
[354724078,1740645649476,-203.573112,0.00033122,7]
[354724079,1740645649500,-221.510886,0.00033122,7]
[354724080,1740645649524,-221.510886,0.00033122,7]
[354724081,1740645649552,-151.0,0.00033122,7]
[354724082,1740645649583,-151.0,0.00033122,7]
[354724083,1740645649609,-201.13836433,0.00033841,6]
[354724084,1740645649635,-151.0,0.00035,7]
[354724085,1740645649661,-151.0,0.00035,7]
[354724086,1740645649686,-151.0,0.00035,7]
[354724087,1740645649711,-201.13836433,0.00036665,7]
[354724088,1740645649868,-151.0,0.00038327,7]
[354724089,1740645649893,-157.097447,0.00038327,7]
[354724090,1740645649917,-157.097447,0.00038327,7]
[354724091,1740645649942,-562.432564,0.00038327,7]
[354724092,1740645649966,-562.432564,0.00038327,7]
[354724093,1740645649989,-151.0,0.00038327,7]
[354724094,1740645650016,-456.94189566,0.00039,15]
[354724095,1740645650041,-201.13836433,0.00039488,8]
[354724096,1740645650066,-1000.0,0.000399,7]
[354724097,1740645650090,-151.0,0.00041064,14]
[354724098,1740645650115,-151.0,0.00041064,14]
[354724099,1740645650139,-399.79424,0.00041064,14]
[354724100,1740645650162,-151.0,0.00041064,14]
[354724101,1740645650186,-399.79424,0.00041064,14]
[354724102,1740645650211,-151.0,0.00041064,14]
[354724103,1740645650235,-1005.0,0.000414,7]
[354724104,1740645650258,-1000.0,0.000414,7]
[354724105,1740645650283,-173.40531727,0.00042233,15]
[354724106,1740645650308,-201.13836433,0.00042312,9]
[354724107,1740645650333,-184.975,0.00042361,14]
[354724108,1740645650357,-184.975,0.00042361,14]
[354724109,1740645650380,-151.0,0.00042361,14]
[354724110,1740645650405,-38334.07613034,0.00043645,10]
[354724111,1740645650429,-151.0,0.00043728,14]
[354724112,1740645650452,-151.0,0.00043728,14]
[354724113,1740645650476,-151.0,0.00043728,14]
[354724114,1740645650500,-218.333758,0.00043728,14]
[354724115,1740645650524,-218.333758,0.00043728,14]
[354724116,1740645650548,-170.79286561,0.00044233,28]
[354724117,1740645650576,-201.13836433,0.00045135,10]
[354724118,1740645650600,-151.0,0.000466,14]
[354724119,1740645650625,-151.0,0.000466,14]
[354724120,1740645650650,-151.0,0.000466,14]
[354724121,1740645650673,-151.0,0.000466,14]
[354724122,1740645650696,-151.0,0.000466,14]
[354724123,1740645650719,-151.0,0.000466,14]
[354724124,1740645650743,-219.98096,0.000466,14]
[354724125,1740645650767,-219.98096,0.000466,14]
[354724126,1740645650793,-173.40531727,0.00046789,15]
[354724127,1740645650819,-151.0,0.000469,14]
[354724128,1740645650844,-175.378075,0.000469,14]
[354724129,1740645650867,-175.378075,0.000469,14]
[354724130,1740645650891,-151.0,0.000469,14]
[354724131,1740645650914,-151.0,0.000469,14]
[354724132,1740645650939,-151.0,0.000469,14]
[354724133,1740645650966,-151.0,0.00047,14]
[354724134,1740645650991,-151.0,0.00047,14]
[354724135,1740645651019,-151.0,0.00047,14]
[354724136,1740645651043,-151.0,0.00047,14]
[354724137,1740645651068,-151.0,0.00047,14]
[354724138,1740645651092,-151.0,0.00047,14]
[354724139,1740645651117,-151.0,0.00047,14]
[354724140,1740645651142,-151.0,0.00047,14]
[354724141,1740645651166,-171.380184,0.00047,14]
[354724142,1740645651190,-171.380184,0.00047,14]
[354724143,1740645651219,-151.0,0.00047,14]
[354724144,1740645651252,-151.0,0.00047,14]
[354724145,1740645651281,-151.0,0.00047,14]
[354724146,1740645651310,-151.0,0.00047,14]
[354724147,1740645651340,-399.79424,0.00047,14]
[354724148,1740645651370,-151.0,0.00047,14]
[354724149,1740645651400,-399.79424,0.00047,14]
[354724150,1740645651428,-151.0,0.00047,14]
[354724151,1740645651455,-151.0,0.00047,14]
[354724152,1740645651482,-221.510886,0.00047,14]
[354724153,1740645651512,-221.510886,0.00047,14]
[354724154,1740645651540,-151.0,0.00047,14]
[354724155,1740645651573,-151.0,0.00047,14]
[354724156,1740645651602,-151.0,0.00047,14]
[354724157,1740645651634,-157.097447,0.00047,14]
[354724158,1740645651664,-157.097447,0.00047,14]
[354724159,1740645651693,-562.432564,0.00047,14]
[354724160,1740645651723,-562.432564,0.00047,14]
[354724161,1740645651752,-295.27911,0.00047,14]
[354724162,1740645651781,-184.975,0.00047225,14]
[354724163,1740645651810,-184.975,0.00047225,14]
[354724164,1740645651838,-154.730638,0.00047225,14]
[354724165,1740645651869,-205.25154824,0.00047323,27]
[354724166,1740645651898,-151.0,0.0004745,14]
[354724167,1740645651926,-182.528585,0.0004745,14]
[354724168,1740645651952,-170.472996,0.0004745,14]
[354724169,1740645651978,-218.333758,0.0004745,14]
[354724170,1740645652007,-218.333758,0.0004745,14]
[354724171,1740645652036,-151.0,0.00047562,14]
[354724172,1740645652062,-247.973314,0.00047562,14]
[354724173,1740645652088,-152.48307,0.00047562,14]
[354724174,1740645652117,-151.0,0.00047562,14]
[354724175,1740645652145,-151.0,0.00047562,14]
[354724176,1740645652173,-280.0,0.00047562,14]
[354724177,1740645652199,-219.98096,0.00047562,14]
[354724178,1740645652227,-219.98096,0.00047562,14]
[354724179,1740645652256,-188.799967,0.00047675,14]
[354724180,1740645652283,-151.0,0.00047675,14]
[354724181,1740645652310,-151.0,0.00047675,14]
[354724182,1740645652337,-151.0,0.00047787,14]
[354724183,1740645652363,-151.0,0.00047787,14]
[354724184,1740645652391,-151.0,0.00047787,14]
[354724185,1740645652417,-171.380184,0.00047787,14]
[354724186,1740645652442,-171.380184,0.00047787,14]
[354724187,1740645652469,-175.378075,0.00047787,14]
[354724188,1740645652496,-151.0,0.00047787,14]
[354724189,1740645652524,-175.378075,0.00047787,14]
[354724190,1740645652551,-151.0,0.00047787,14]
[354724191,1740645652583,-503.70486093,0.00047843,10]
[354724192,1740645652614,-151.0,0.00047843,14]
[354724193,1740645652644,-221.510886,0.00047843,14]
[354724194,1740645652672,-221.510886,0.00047843,14]
[354724195,1740645652699,-151.0,0.00047843,14]
[354724196,1740645652726,-286.657702,0.00047843,14]
[354724197,1740645652916,-151.0,0.00047843,14]
[354724198,1740645652940,-157.097447,0.00047843,14]
[354724199,1740645652966,-157.097447,0.00047843,14]
[354724200,1740645652991,-562.432564,0.00047843,14]
[354724201,1740645653015,-562.432564,0.00047843,14]
[354724202,1740645653040,-151.0,0.000479,14]
[354724203,1740645653064,-151.0,0.000479,14]
[354724204,1740645653087,-151.0,0.000479,14]
[354724205,1740645653110,-151.0,0.000479,14]
[354724206,1740645653133,-151.0,0.000479,14]
[354724207,1740645653156,-207.408186,0.000479,14]
[354724208,1740645653180,-151.0,0.000479,14]
[354724209,1740645653204,-399.79424,0.000479,14]
[354724210,1740645653227,-151.0,0.000479,14]
[354724211,1740645653251,-151.0,0.000479,14]
[354724212,1740645653275,-399.79424,0.000479,14]
[354724213,1740645653298,-151.0,0.000479,14]
[354724214,1740645653324,-201.13836433,0.00047959,11]
[354724215,1740645653347,-164.85897035,0.00047959,24]
[354724216,1740645653372,-223.860345,0.00048,14]
[354724217,1740645653396,-151.0,0.00048,14]
[354724218,1740645653420,-227.743728,0.00048,14]
[354724219,1740645653443,-151.0,0.00048,14]
[354724220,1740645653466,-151.0,0.00048,14]
[354724221,1740645653490,-151.0,0.00048,14]
[354724222,1740645653513,-151.0,0.00048,14]
[354724223,1740645653536,-151.0,0.00048,14]
[354724224,1740645653560,-171.380184,0.00048,14]
[354724225,1740645653588,-171.380184,0.00048,14]
[354724226,1740645653613,-175.378075,0.00048,14]
[354724227,1740645653635,-190.529403,0.00048,14]
[354724228,1740645653662,-175.378075,0.00048,14]
[354724229,1740645653686,-151.0,0.00048,14]
[354724230,1740645653709,-184.975,0.00048,14]
[354724231,1740645653733,-184.975,0.00048,14]
[354724232,1740645653756,-184.975,0.00048,14]
[354724233,1740645653779,-184.975,0.00048,14]
[354724234,1740645653803,-151.0,0.00048,14]
[354724235,1740645653828,-193.352876,0.00048,14]
[354724236,1740645653852,-399.79424,0.00048,14]
[354724237,1740645653880,-151.0,0.00048,14]
[354724238,1740645653904,-399.79424,0.00048,14]
[354724239,1740645653928,-151.0,0.00048,14]
[354724240,1740645653952,-224.563609,0.00048,14]
[354724241,1740645653975,-218.333758,0.00048,14]
[354724242,1740645653998,-218.333758,0.00048,14]
[354724243,1740645654021,-151.0,0.00048,14]
[354724244,1740645654045,-151.0,0.00048,14]
[354724245,1740645654071,-151.0,0.00048,14]
[354724246,1740645654095,-151.0,0.00048,14]
[354724247,1740645654119,-219.98096,0.00048,14]
[354724248,1740645654144,-219.98096,0.00048,14]
[354724249,1740645654168,-151.0,0.00048,14]
[354724250,1740645654192,-221.510886,0.00048,14]
[354724251,1740645654216,-221.510886,0.00048,14]
[354724252,1740645654240,-151.0,0.00048,14]
[354724253,1740645654264,-151.0,0.00048,14]
[354724254,1740645654287,-157.097447,0.00048,14]
[354724255,1740645654310,-157.097447,0.00048,14]
[354724256,1740645654336,-562.432564,0.00048,14]
[354724257,1740645654360,-562.432564,0.00048,14]
[354724258,1740645662511,4222.48406822,0.00043567,15]
[354724259,1740645665902,719.0,0.00029403,5]
[354724260,1740645667529,4222.48406822,0.00048344,15]
[354724261,1740645673138,640.0,0.00029403,5]
[354724262,1740645681224,581.0,0.00029403,5]
[354724263,1740645687662,520.0,0.00029403,5]
[354724264,1740645695209,467.0,0.00029403,5]